[Event "28th North American Open"]
[Site "Las Vegas"]
[Date "2018.12.29"]
[Round "8.1"]
[White "Brattain, Mika"]
[Black "Zierk, Steven"]
[Result "1/2-1/2"]
[ECO "A06"]
[WhiteElo "2411"]
[BlackElo "2510"]
[PlyCount "70"]
[EventDate "2018.12.??"]
[EventType "swiss"]
[EventRounds "9"]
[EventCountry "USA"]
[TimeControl "6600+10"]
[WhiteClock "0:19:40"]
[BlackClock "0:06:17"]

1. Nf3 {[%emt 0:00:00]} d5 {[%emt 0:00:00]} 2. g3 {[%emt 0:00:00]} Nf6 {
[%emt 0:00:00]} 3. Bg2 {[%emt 0:00:00]} c6 {[%emt 0:00:00]} 4. O-O {[%emt 0:00:
00]} Bf5 {[%emt 0:00:00]} 5. b3 {[%emt 0:00:00]} h6 {[%emt 0:00:00]} 6. Bb2 {
[%emt 0:00:00]} e6 {[%emt 0:00:00]} 7. d3 {[%emt 0:00:00]} Be7 {[%emt 0:00:00]}
8. c4 {[%emt 0:00:00]} O-O {[%emt 0:00:00]} 9. Nbd2 {[%emt 0:00:00]} Nbd7 {
[%emt 0:00:00]} 10. Qc2 {[%emt 0:00:00]} a5 {[%emt 0:00:00]} 11. a3 {[%emt 0:
05:38]} Bh7 {[%emt 0:02:48]} 12. Ne5 {[%emt 0:02:41]} Nxe5 {[%emt 0:08:44]} 13.
Bxe5 {[%emt 0:01:09]} Qb6 {[%emt 0:01:42]} 14. Qb2 {[%emt 0:04:26]} Rfd8 {
[%emt 0:02:34]} 15. Nf3 {[%emt 0:11:02]} Ne8 {[%emt 0:08:38]} 16. Bc3 {[%emt 0:
02:23]} f6 {[%emt 0:02:41]} 17. d4 {[%emt 0:09:10]} a4 {[%emt 0:13:11]} 18. Nd2
{[%emt 0:01:04]} Qa6 {[%emt 0:02:01]} 19. c5 {[%emt 0:02:02]} b6 {[%emt 0:02:
11]} 20. cxb6 {[%emt 0:12:37]} axb3 {[%emt 0:04:50]} 21. Bh3 {[%emt 0:08:15]}
Kf7 {[%emt 0:17:18]} 22. Qxb3 {[%emt 0:04:31]} Rdb8 {[%emt 0:01:36]} 23. Bb4 {
[%emt 0:00:30]} Bxb4 {[%emt 0:01:51]} 24. axb4 {[%emt 0:07:13]} Qxb6 {[%emt 0:
12:31]} 25. Qc3 {[%emt 0:03:11]} Nd6 {[%emt 0:02:56]} 26. e3 {[%emt 0:05:27]}
Bf5 {[%emt 0:05:58]} 27. Bxf5 {[%emt 0:01:34]} Nxf5 {[%emt 0:01:02]} 28. Ra5 {
[%emt 0:00:43]} Ra7 {[%emt 0:06:32]} 29. Rxa7+ {[%emt 0:02:19]} Qxa7 {[%emt 0:
02:22]} 30. Qxc6 {[%emt 0:01:16]} Rxb4 {[%emt 0:00:23]} 31. Qc3 {[%emt 0:02:16]
} Ra4 {[%emt 0:01:23]} 32. Nb3 {[%emt 0:01:12]} Rc4 {[%emt 0:02:18]} 33. Qd3 {
[%emt 0:03:00]} Nd6 {[%emt 0:02:28]} 34. Ra1 {[%emt 0:02:13]} Ra4 {[%emt 0:01:
18]} 35. Rxa4 {[%emt 0:00:18]} Qxa4 {[%emt 0:00:27]} 1/2-1/2

[Event "28th North American Open"]
[Site "Las Vegas"]
[Date "2018.12.29"]
[Round "8.2"]
[White "Li, Ruifeng"]
[Black "Zhu, Jack"]
[Result "1-0"]
[ECO "B26"]
[WhiteElo "2559"]
[BlackElo "2364"]
[PlyCount "93"]
[EventDate "2018.12.??"]
[EventType "swiss"]
[EventRounds "9"]
[EventCountry "USA"]
[TimeControl "6600+10"]
[WhiteClock "0:20:50"]
[BlackClock "0:26:23"]

1. e4 {[%emt 0:00:00]} c5 {[%emt 0:00:00]} 2. Nc3 {[%emt 0:00:00]} Nc6 {
[%emt 0:00:00]} 3. g3 {[%emt 0:00:00]} g6 {[%emt 0:00:00]} 4. Bg2 {[%emt 0:00:
00]} Bg7 {[%emt 0:00:00]} 5. d3 {[%emt 0:00:00]} d6 {[%emt 0:00:00]} 6. Nge2 {
[%emt 0:00:00]} e5 {[%emt 0:00:00]} 7. O-O {[%emt 0:00:00]} Nge7 {[%emt 0:00:
00]} 8. f4 {[%emt 0:00:00]} O-O {[%emt 0:00:00]} 9. Be3 {[%emt 0:00:00]} Nd4 {
[%emt 0:00:26]} 10. Qd2 {[%emt 0:00:00]} Rb8 {[%emt 0:02:04]} 11. Rf2 {[%emt 0:
00:00]} b5 {[%emt 0:01:30]} 12. Raf1 {[%emt 0:00:00]} b4 {[%emt 0:00:10]} 13.
Nd1 {[%emt 0:00:00]} Bg4 {[%emt 0:00:13]} 14. Nc1 {[%emt 0:02:01]} Qa5 {
[%emt 0:02:34]} 15. fxe5 {[%emt 0:11:54]} dxe5 {[%emt 0:00:26]} 16. Bg5 {
[%emt 0:00:10]} Qc7 {[%emt 0:09:28]} 17. Ne3 {[%emt 0:02:03]} Be6 {[%emt 0:00:
16]} 18. g4 {[%emt 0:02:12]} Kh8 {[%emt 0:05:37]} 19. c3 {[%emt 0:09:39]} bxc3
{[%emt 0:00:17]} 20. bxc3 {[%emt 0:00:10]} Nb5 {[%emt 0:00:10]} 21. Nb3 {
[%emt 0:10:40]} Ng8 {[%emt 0:00:47]} 22. c4 {[%emt 0:00:30]} Nd4 {[%emt 0:00:
47]} 23. Nxd4 {[%emt 0:00:10]} cxd4 {[%emt 0:00:12]} 24. Nd5 {[%emt 0:00:33]}
Bxd5 {[%emt 0:06:06]} 25. exd5 {[%emt 0:00:10]} f6 {[%emt 0:01:20]} 26. Bh4 {
[%emt 0:00:10]} Qc5 {[%emt 0:00:21]} 27. Bg3 {[%emt 0:11:18]} a5 {[%emt 0:03:
15]} 28. h4 {[%emt 0:02:18]} a4 {[%emt 0:00:18]} 29. Qe1 {[%emt 0:08:25]} Rbe8
{[%emt 0:01:11]} 30. g5 {[%emt 0:02:05]} f5 {[%emt 0:01:02]} 31. h5 {[%emt 0:
00:10]} e4 {[%emt 0:11:51]} 32. dxe4 {[%emt 0:05:01]} d3 {[%emt 0:00:10]} 33.
Kh1 {[%emt 0:02:59]} gxh5 {[%emt 0:01:20]} 34. e5 {[%emt 0:08:02]} h4 {[%emt 0:
00:24]} 35. Bh2 {[%emt 0:01:17]} h3 {[%emt 0:02:36]} 36. Bxh3 {[%emt 0:01:01]}
Qxc4 {[%emt 0:01:31]} 37. d6 {[%emt 0:01:50]} Qd4 {[%emt 0:03:25]} 38. Bxf5 {
[%emt 0:04:04]} Rxe5 {[%emt 0:11:14]} 39. Bxe5 {[%emt 0:00:34]} Bxe5 {[%emt 0:
00:10]} 40. Qe4 {[%emt 0:01:40]} Qxd6 {[%emt 0:11:57]} 41. Qxd3 {[%emt 0:00:10]
} Qxd3 {[%emt 0:00:10]} 42. Bxd3 {[%emt 0:00:10]} Rd8 {[%emt 0:00:10]} 43. Rf3
{[%emt 0:02:33]} Rd6 {[%emt 0:07:19]} 44. Rh3 {[%emt 0:01:34]} h6 {[%emt 0:00:
10]} 45. Rf7 {[%emt 0:01:07]} Bg7 {[%emt 0:00:14]} 46. Ra7 {[%emt 0:00:10]} Rd4
{[%emt 0:00:16]} 47. gxh6 {[%emt 0:00:10]} 1-0

[Event "28th North American Open"]
[Site "Las Vegas"]
[Date "2018.12.29"]
[Round "8.3"]
[White "Li, Zhaozhi"]
[Black "Becerra Rivero, Julio"]
[Result "1-0"]
[ECO "D15"]
[WhiteElo "2399"]
[BlackElo "2520"]
[PlyCount "121"]
[EventDate "2018.12.??"]
[EventType "swiss"]
[EventRounds "9"]
[EventCountry "USA"]
[TimeControl "6600+10"]
[WhiteClock "0:09:02"]
[BlackClock "0:34:12"]

1. d4 {[%emt 0:00:00]} Nf6 {[%emt 0:00:00]} 2. c4 {[%emt 0:00:00]} c6 {[%emt 0:
00:00]} 3. Nf3 {[%emt 0:00:00]} d5 {[%emt 0:00:00]} 4. Nc3 {[%emt 0:00:00]} a6
{[%emt 0:00:00]} 5. c5 {[%emt 0:00:00]} Nbd7 {[%emt 0:00:00]} 6. Bf4 {[%emt 0:
00:00]} Nh5 {[%emt 0:00:00]} 7. Bd2 {[%emt 0:00:00]} Nhf6 {[%emt 0:00:00]} 8.
Bf4 {[%emt 0:00:00]} Nh5 {[%emt 0:00:00]} 9. Bd2 {[%emt 0:00:00]} Nhf6 {
[%emt 0:00:00]} 10. Qc2 {[%emt 0:00:00]} g6 {[%emt 0:00:00]} 11. g3 {[%emt 0:
00:00]} Bg7 {[%emt 0:00:15]} 12. Bg2 {[%emt 0:00:00]} O-O {[%emt 0:03:42]} 13.
O-O {[%emt 0:00:00]} Re8 {[%emt 0:00:34]} 14. Rad1 {[%emt 0:00:13]} Nf8 {
[%emt 0:06:03]} 15. Qb3 {[%emt 0:00:10]} Ra7 {[%emt 0:01:15]} 16. Na4 {[%emt 0:
05:57]} Bf5 {[%emt 0:07:48]} 17. Nh4 {[%emt 0:22:07]} Be6 {[%emt 0:02:18]} 18.
f4 {[%emt 0:06:46]} N6d7 {[%emt 0:03:59]} 19. Bc3 {[%emt 0:18:06]} f6 {[%emt 0:
02:02]} 20. f5 {[%emt 0:10:59]} Bf7 {[%emt 0:00:54]} 21. Qc2 {[%emt 0:00:30]}
g5 {[%emt 0:06:27]} 22. Nf3 {[%emt 0:00:25]} e5 {[%emt 0:02:22]} 23. e3 {
[%emt 0:06:49]} Ra8 {[%emt 0:02:50]} 24. g4 {[%emt 0:03:04]} h5 {[%emt 0:01:55]
} 25. h3 {[%emt 0:00:50]} Nh7 {[%emt 0:00:26]} 26. Nd2 {[%emt 0:09:10]} Qc7 {
[%emt 0:02:59]} 27. Qd3 {[%emt 0:01:10]} Re7 {[%emt 0:02:03]} 28. Nb3 {[%emt 0:
03:08]} Rae8 {[%emt 0:00:44]} 29. Rfe1 {[%emt 0:00:15]} Bf8 {[%emt 0:02:26]}
30. Bd2 {[%emt 0:06:34]} Qb8 {[%emt 0:01:33]} 31. Ba5 {[%emt 0:01:34]} Kg7 {
[%emt 0:09:08]} 32. Qf1 {[%emt 0:01:02]} Kg8 {[%emt 0:13:28]} 33. Qf2 {[%emt 0:
00:10]} Kg7 {[%emt 0:00:38]} 34. Qf1 {[%emt 0:00:35]} Kg8 {[%emt 0:00:10]} 35.
Qf2 {[%emt 0:00:10]} Kg7 {[%emt 0:00:10]} 36. Bf3 {[%emt 0:03:24]} Kh8 {
[%emt 0:01:37]} 37. Re2 {[%emt 0:02:20]} Bg8 {[%emt 0:04:53]} 38. Rde1 {
[%emt 0:00:16]} Bf7 {[%emt 0:00:19]} 39. Bg2 {[%emt 0:00:45]} Kg7 {[%emt 0:00:
33]} 40. Nc1 {[%emt 0:01:30]} Kg8 {[%emt 0:00:56]} 41. Nd3 {[%emt 0:05:31]} Bg7
{[%emt 0:00:42]} 42. Rc2 {[%emt 0:01:28]} Nhf8 {[%emt 0:00:58]} 43. Rc3 {
[%emt 0:01:39]} Bh6 {[%emt 0:00:39]} 44. Rb3 {[%emt 0:00:25]} exd4 {[%emt 0:02:
10]} 45. exd4 {[%emt 0:00:10]} Re4 {[%emt 0:00:10]} 46. Bf3 {[%emt 0:00:00]}
Bg7 {[%emt 0:00:00]} 47. Rc3 {[%emt 0:00:00]} hxg4 {[%emt 0:00:00]} 48. hxg4 {
[%emt 0:00:00]} Rxe1+ {[%emt 0:00:00]} 49. Nxe1 {[%emt 0:00:00]} Ne5 {[%emt 0:
00:00]} 50. dxe5 {[%emt 0:00:00]} fxe5 {[%emt 0:00:00]} 51. Bd1 {[%emt 0:00:00]
} Nh7 {[%emt 0:00:00]} 52. Rh3 {[%emt 0:00:00]} d4 {[%emt 0:00:00]} 53. Nf3 {
[%emt 0:00:00]} e4 {[%emt 0:00:00]} 54. Rxh7 {[%emt 0:00:00]} Kxh7 {[%emt 0:00:
00]} 55. Nxg5+ {[%emt 0:00:00]} Kg8 {[%emt 0:00:00]} 56. Nxf7 {[%emt 0:00:00]}
e3 {[%emt 0:00:00]} 57. Qh4 {[%emt 0:00:00]} Qf4 {[%emt 0:00:00]} 58. Bb3 {
[%emt 0:00:00]} Kf8 {[%emt 0:00:00]} 59. Ng5 {[%emt 0:00:00]} Re7 {[%emt 0:00:
00]} 60. Ne6+ {[%emt 0:00:00]} Rxe6 {[%emt 0:00:00]} 61. Bxe6 {[%emt 0:00:00]}
1-0

[Event "28th North American Open"]
[Site "Las Vegas"]
[Date "2018.12.29"]
[Round "8.4"]
[White "Hong, Andrew"]
[Black "Demuth, Adrien"]
[Result "1/2-1/2"]
[ECO "C41"]
[WhiteElo "2390"]
[BlackElo "2517"]
[PlyCount "99"]
[EventDate "2018.12.??"]
[EventType "swiss"]
[EventRounds "9"]
[EventCountry "USA"]
[TimeControl "6600+10"]
[WhiteClock "0:02:11"]
[BlackClock "0:15:42"]

1. e4 {[%emt 0:00:00]} e5 {[%emt 0:00:00]} 2. Nf3 {[%emt 0:00:00]} d6 {[%emt 0:
00:00]} 3. d4 {[%emt 0:00:00]} exd4 {[%emt 0:00:00]} 4. Nxd4 {[%emt 0:00:00]}
Nf6 {[%emt 0:00:00]} 5. Nc3 {[%emt 0:00:00]} Be7 {[%emt 0:00:00]} 6. Bf4 {
[%emt 0:00:00]} O-O {[%emt 0:00:00]} 7. Qd2 {[%emt 0:00:00]} d5 {[%emt 0:00:00]
} 8. Ndb5 {[%emt 0:24:07]} Bb4 {[%emt 0:00:00]} 9. exd5 {[%emt 0:06:57]} Re8+ {
[%emt 0:01:33]} 10. Be2 {[%emt 0:02:54]} Ne4 {[%emt 0:00:10]} 11. Qd3 {[%emt 0:
06:52]} Bf5 {[%emt 0:00:12]} 12. Qc4 {[%emt 0:07:19]} Nxc3 {[%emt 0:30:48]} 13.
bxc3 {[%emt 0:14:49]} Bd6 {[%emt 0:32:57]} 14. Bxd6 {[%emt 0:16:31]} cxd6 {
[%emt 0:00:10]} 15. O-O {[%emt 0:02:55]} Bxc2 {[%emt 0:04:34]} 16. Rfe1 {
[%emt 0:02:53]} Na6 {[%emt 0:07:00]} 17. Qf4 {[%emt 0:02:01]} Re5 {[%emt 0:13:
24]} 18. Nd4 {[%emt 0:06:02]} Qe7 {[%emt 0:06:29]} 19. Qd2 {[%emt 0:07:16]} Ba4
{[%emt 0:00:10]} 20. Bxa6 {[%emt 0:01:41]} bxa6 {[%emt 0:00:10]} 21. Nf3 {
[%emt 0:00:38]} Rxe1+ {[%emt 0:04:36]} 22. Rxe1 {[%emt 0:00:10]} Qf6 {[%emt 0:
00:10]} 23. c4 {[%emt 0:02:19]} Bd7 {[%emt 0:02:51]} 24. Qe3 {[%emt 0:01:35]}
h6 {[%emt 0:01:32]} 25. h3 {[%emt 0:01:32]} Rc8 {[%emt 0:02:24]} 26. Qe7 {
[%emt 0:01:27]} Qxe7 {[%emt 0:00:33]} 27. Rxe7 {[%emt 0:00:10]} Rd8 {[%emt 0:
01:32]} 28. Nd2 {[%emt 0:00:27]} Kf8 {[%emt 0:00:24]} 29. Re3 {[%emt 0:00:10]}
Rb8 {[%emt 0:00:31]} 30. Rb3 {[%emt 0:01:20]} Rb6 {[%emt 0:00:14]} 31. Kf1 {
[%emt 0:00:23]} Ba4 {[%emt 0:00:24]} 32. Ra3 {[%emt 0:00:10]} Bc2 {[%emt 0:00:
36]} 33. Ke2 {[%emt 0:00:26]} Ke7 {[%emt 0:00:18]} 34. Ke3 {[%emt 0:00:46]} Kd7
{[%emt 0:00:11]} 35. Kd4 {[%emt 0:00:10]} Bg6 {[%emt 0:00:32]} 36. Kc3 {
[%emt 0:00:33]} Kc7 {[%emt 0:00:22]} 37. Rb3 {[%emt 0:00:26]} Kd7 {[%emt 0:00:
13]} 38. Rb2 {[%emt 0:00:10]} Kc7 {[%emt 0:00:17]} 39. a4 {[%emt 0:00:53]} Rxb2
{[%emt 0:01:12]} 40. Kxb2 {[%emt 0:00:10]} Kb6 {[%emt 0:00:10]} 41. Nb3 {
[%emt 0:00:00]} a5 {[%emt 0:00:00]} 42. Kc3 {[%emt 0:00:00]} Bf5 {[%emt 0:00:
00]} 43. Kd4 {[%emt 0:00:00]} Bc2 {[%emt 0:00:00]} 44. c5+ {[%emt 0:00:00]}
dxc5+ {[%emt 0:00:00]} 45. Nxc5 {[%emt 0:00:00]} h5 {[%emt 0:00:00]} 46. h4 {
[%emt 0:00:00]} Bf5 {[%emt 0:00:00]} 47. Kc4 {[%emt 0:00:00]} Kc7 {[%emt 0:00:
00]} 48. Kd4 {[%emt 0:00:00]} Kb6 {[%emt 0:00:00]} 49. Kc4 {[%emt 0:00:00]} Kc7
{[%emt 0:00:00]} 50. Kd4 {[%emt 0:00:00]} 1/2-1/2

[Event "28th North American Open"]
[Site "Las Vegas"]
[Date "2018.12.29"]
[Round "8"]
[White "Yanayt, Eugene"]
[Black "Patel, Advait"]
[Result "0-1"]
[ECO "E98"]
[WhiteElo "2122"]
[BlackElo "2455"]
[PlyCount "64"]
[EventDate "2018.12.??"]
[EventType "swiss"]
[EventRounds "9"]
[EventCountry "USA"]
[TimeControl "6600+10"]
[WhiteClock "0:13:22"]
[BlackClock "0:07:27"]

1. d4 {[%emt 0:19:40]} Nf6 {[%emt 0:25:50]} 2. c4 {[%emt 0:00:00]} g6 {[%emt 0:
00:00]} 3. Nc3 {[%emt 0:00:00]} Bg7 {[%emt 0:00:00]} 4. e4 {[%emt 0:00:00]} d6
{[%emt 0:00:00]} 5. Nf3 {[%emt 0:00:00]} O-O {[%emt 0:00:00]} 6. Be2 {[%emt 0:
00:00]} e5 {[%emt 0:00:00]} 7. O-O {[%emt 0:00:00]} Nc6 {[%emt 0:00:00]} 8. d5
{[%emt 0:00:00]} Ne7 {[%emt 0:00:00]} 9. Ne1 {[%emt 0:00:00]} Nd7 {[%emt 0:00:
00]} 10. Be3 {[%emt 0:00:00]} f5 {[%emt 0:00:00]} 11. f3 {[%emt 0:00:00]} f4 {
[%emt 0:00:00]} 12. Bf2 {[%emt 0:00:00]} g5 {[%emt 0:00:00]} 13. Rc1 {[%emt 0:
00:00]} Rf6 {[%emt 0:00:00]} 14. Nd3 {[%emt 0:08:36]} b6 {[%emt 0:00:00]} 15.
b4 {[%emt 0:01:13]} Rh6 {[%emt 0:00:00]} 16. Be1 {[%emt 0:04:52]} Nf6 {[%emt 0:
03:26]} 17. c5 {[%emt 0:02:47]} a6 {[%emt 0:00:01]} 18. Nf2 {[%emt 0:12:43]}
Rg6 {[%emt 0:05:27]} 19. Bd2 {[%emt 0:02:24]} h5 {[%emt 0:02:29]} 20. h3 {
[%emt 0:00:59]} Kh8 {[%emt 0:09:21]} 21. Na4 {[%emt 0:02:03]} b5 {[%emt 0:08:
50]} 22. Nc3 {[%emt 0:06:13]} Neg8 {[%emt 0:09:44]} 23. a4 {[%emt 0:00:36]} Nh6
{[%emt 0:17:39]} 24. axb5 {[%emt 0:09:53]} g4 {[%emt 0:00:29]} 25. fxg4 {
[%emt 0:02:39]} hxg4 {[%emt 0:00:00]} 26. hxg4 {[%emt 0:01:07]} Nfxg4 {[%emt 0:
00:00]} 27. Qe1 {[%emt 0:11:40]} Bf6 {[%emt 0:15:30]} 28. Bxg4 {[%emt 0:04:27]}
Nxg4 {[%emt 0:02:21]} 29. Nh1 {[%emt 0:01:51]} Qg8 {[%emt 0:04:54]} 30. Qe2 {
[%emt 0:04:23]} Qh7 {[%emt 0:00:57]} 31. g3 {[%emt 0:00:00]} Rh6 {[%emt 0:00:
14]} 32. Qg2 {[%emt 0:03:52]} Rh2 {[%emt 0:00:51]} 0-1

[Event "28th North American Open"]
[Site "Las Vegas"]
[Date "2018.12.29"]
[Round "8"]
[White "Balakrishnan, Praveen"]
[Black "Daggupati, Balaji"]
[Result "1-0"]
[ECO "C84"]
[WhiteElo "2418"]
[BlackElo "2256"]
[PlyCount "87"]
[EventDate "2018.12.??"]
[EventType "swiss"]
[EventRounds "9"]
[EventCountry "USA"]
[TimeControl "6600+10"]
[WhiteClock "0:03:13"]
[BlackClock "0:28:37"]

1. e4 {[%emt 0:19:40]} e5 {[%emt 0:19:56]} 2. Nf3 {[%emt 0:00:00]} Nc6 {
[%emt 0:00:00]} 3. Bb5 {[%emt 0:00:00]} a6 {[%emt 0:00:00]} 4. Ba4 {[%emt 0:00:
00]} Nf6 {[%emt 0:00:00]} 5. O-O {[%emt 0:00:00]} Be7 {[%emt 0:00:00]} 6. d3 {
[%emt 0:00:00]} b5 {[%emt 0:00:00]} 7. Bb3 {[%emt 0:00:00]} d6 {[%emt 0:00:00]}
8. a3 {[%emt 0:00:00]} O-O {[%emt 0:00:00]} 9. Nc3 {[%emt 0:00:00]} Na5 {
[%emt 0:02:23]} 10. Ba2 {[%emt 0:00:00]} c5 {[%emt 0:04:09]} 11. Nd5 {[%emt 0:
16:17]} Be6 {[%emt 0:02:18]} 12. b4 {[%emt 0:03:38]} Nc6 {[%emt 0:00:00]} 13.
c3 {[%emt 0:06:36]} Re8 {[%emt 0:02:25]} 14. Ng5 {[%emt 0:06:24]} cxb4 {
[%emt 0:15:19]} 15. Nxe6 {[%emt 0:07:47]} fxe6 {[%emt 0:00:00]} 16. Nxb4 {
[%emt 0:00:00]} Nxb4 {[%emt 0:01:02]} 17. Bxe6+ {[%emt 0:00:00]} Kh8 {[%emt 0:
00:00]} 18. cxb4 {[%emt 0:07:04]} d5 {[%emt 0:00:15]} 19. exd5 {[%emt 0:04:42]}
Nxd5 {[%emt 0:00:00]} 20. Bf5 {[%emt 0:01:57]} g6 {[%emt 0:02:28]} 21. Be4 {
[%emt 0:04:22]} Nc3 {[%emt 0:00:00]} 22. Qg4 {[%emt 0:00:47]} Nxe4 {[%emt 0:00:
01]} 23. dxe4 {[%emt 0:00:00]} a5 {[%emt 0:01:46]} 24. Bb2 {[%emt 0:08:54]}
axb4 {[%emt 0:01:51]} 25. Bxe5+ {[%emt 0:01:29]} Bf6 {[%emt 0:00:00]} 26. Rad1
{[%emt 0:01:03]} Qe7 {[%emt 0:00:00]} 27. Bxf6+ {[%emt 0:00:47]} Qxf6 {[%emt 0:
00:00]} 28. axb4 {[%emt 0:00:00]} Ra4 {[%emt 0:02:52]} 29. Qd7 {[%emt 0:02:24]}
Rxe4 {[%emt 0:05:41]} 30. Qc8+ {[%emt 0:07:25]} Kg7 {[%emt 0:00:00]} 31. Qb7+ {
[%emt 0:00:00]} Re7 {[%emt 0:00:00]} 32. Qxb5 {[%emt 0:03:28]} Ra2 {[%emt 0:00:
00]} 33. Rb1 {[%emt 0:01:37]} Qd4 {[%emt 0:00:00]} 34. Rbd1 {[%emt 0:03:36]}
Qf6 {[%emt 0:00:00]} 35. h3 {[%emt 0:04:59]} Rb2 {[%emt 0:02:00]} 36. Rb1 {
[%emt 0:00:20]} Rc2 {[%emt 0:00:22]} 37. Rb3 {[%emt 0:00:00]} Re1 {[%emt 0:05:
28]} 38. Rf3 {[%emt 0:00:00]} Rxf1+ {[%emt 0:10:36]} 39. Qxf1 {[%emt 0:00:00]}
Qg5 {[%emt 0:00:22]} 40. Qa1+ {[%emt 0:00:00]} Kh6 {[%emt 0:01:58]} 41. Qh8 {
[%emt 0:00:00]} Qc1+ {[%emt 0:03:25]} 42. Kh2 {[%emt 0:00:00]} Rc8 {[%emt 0:00:
31]} 43. Qf6 {[%emt 0:00:00]} Qc7+ {[%emt 0:01:35]} 44. Rf4 {[%emt 0:00:00]}
1-0

[Event "28th North American Open"]
[Site "Las Vegas"]
[Date "2018.12.29"]
[Round "8"]
[White "Mulyar, Michael"]
[Black "Andersen, Gunnar"]
[Result "1-0"]
[ECO "E66"]
[WhiteElo "2398"]
[BlackElo "2194"]
[PlyCount "47"]
[EventDate "2018.12.??"]
[EventType "swiss"]
[EventRounds "9"]
[EventCountry "USA"]
[TimeControl "6600+10"]
[WhiteClock "1:13:24"]
[BlackClock "1:18:10"]

1. d4 {[%emt 0:19:40]} Nf6 {[%emt 0:19:55]} 2. Nf3 {[%emt 0:00:00]} g6 {
[%emt 0:00:00]} 3. c4 {[%emt 0:00:00]} Bg7 {[%emt 0:00:00]} 4. g3 {[%emt 0:00:
00]} O-O {[%emt 0:00:00]} 5. Bg2 {[%emt 0:00:00]} d6 {[%emt 0:00:00]} 6. O-O {
[%emt 0:00:00]} c5 {[%emt 0:00:00]} 7. Nc3 {[%emt 0:00:00]} Nc6 {[%emt 0:00:00]
} 8. d5 {[%emt 0:00:00]} Na5 {[%emt 0:00:00]} 9. Nd2 {[%emt 0:00:00]} a6 {
[%emt 0:00:00]} 10. Qc2 {[%emt 0:00:00]} Bd7 {[%emt 0:00:00]} 11. a4 {[%emt 0:
00:00]} Rb8 {[%emt 0:00:00]} 12. b3 {[%emt 0:00:00]} b5 {[%emt 0:00:00]} 13.
axb5 {[%emt 0:00:54]} axb5 {[%emt 0:00:00]} 14. cxb5 {[%emt 0:04:24]} Ne8 {
[%emt 0:00:37]} 15. Nc4 {[%emt 0:06:16]} Rxb5 {[%emt 0:01:07]} 16. Nxb5 {
[%emt 0:00:45]} Bxa1 {[%emt 0:00:00]} 17. Nc3 {[%emt 0:03:45]} Nxc4 {[%emt 0:
00:57]} 18. bxc4 {[%emt 0:00:52]} Qa5 {[%emt 0:06:20]} 19. Bd2 {[%emt 0:00:00]}
Nf6 {[%emt 0:00:52]} 20. Na2 {[%emt 0:00:01]} Qa6 {[%emt 0:04:56]} 21. Rxa1 {
[%emt 0:00:02]} Ra8 {[%emt 0:00:00]} 22. h3 {[%emt 0:02:37]} Ba4 {[%emt 0:01:
14]} 23. Qc3 {[%emt 0:00:00]} Be8 {[%emt 0:00:00]} 24. Bc1 {[%emt 0:01:20]} 1-0

[Event "28th North American Open"]
[Site "Las Vegas"]
[Date "2018.12.29"]
[Round "8"]
[White "Karthik Venkataraman"]
[Black "Ramer, Scott"]
[Result "1-0"]
[ECO "C97"]
[WhiteElo "2527"]
[BlackElo "2200"]
[PlyCount "127"]
[EventDate "2018.12.??"]
[EventType "swiss"]
[EventRounds "9"]
[EventCountry "USA"]
[TimeControl "6600+10"]
[WhiteClock "0:26:14"]
[BlackClock "0:01:39"]

1. e4 {[%emt 0:19:40]} e5 {[%emt 0:24:20]} 2. Nf3 {[%emt 0:00:00]} Nc6 {
[%emt 0:00:00]} 3. Bb5 {[%emt 0:00:00]} a6 {[%emt 0:00:00]} 4. Ba4 {[%emt 0:00:
00]} Nf6 {[%emt 0:00:00]} 5. O-O {[%emt 0:00:00]} Be7 {[%emt 0:00:00]} 6. Re1 {
[%emt 0:00:00]} b5 {[%emt 0:00:00]} 7. Bb3 {[%emt 0:00:00]} d6 {[%emt 0:00:00]}
8. c3 {[%emt 0:00:00]} O-O {[%emt 0:00:00]} 9. h3 {[%emt 0:00:00]} Na5 {
[%emt 0:00:00]} 10. Bc2 {[%emt 0:00:00]} c5 {[%emt 0:00:00]} 11. d4 {[%emt 0:
00:00]} Qc7 {[%emt 0:00:00]} 12. Nbd2 {[%emt 0:00:00]} Bd7 {[%emt 0:00:00]} 13.
Nf1 {[%emt 0:00:00]} Nc4 {[%emt 0:00:19]} 14. b3 {[%emt 0:00:00]} Nb6 {[%emt 0:
00:04]} 15. d5 {[%emt 0:00:00]} Rfc8 {[%emt 0:01:08]} 16. a4 {[%emt 0:00:00]}
c4 {[%emt 0:08:50]} 17. axb5 {[%emt 0:00:00]} cxb3 {[%emt 0:02:16]} 18. Bxb3 {
[%emt 0:00:00]} axb5 {[%emt 0:03:39]} 19. Rxa8 {[%emt 0:07:27]} Rxa8 {[%emt 0:
00:28]} 20. Qd3 {[%emt 0:01:36]} h6 {[%emt 0:14:44]} 21. Ng3 {[%emt 0:03:01]}
Bf8 {[%emt 0:03:15]} 22. Ne2 {[%emt 0:05:18]} Be8 {[%emt 0:02:39]} 23. Nh4 {
[%emt 0:00:29]} g6 {[%emt 0:09:34]} 24. Rf1 {[%emt 0:05:38]} Nbd7 {[%emt 0:02:
22]} 25. Bc2 {[%emt 0:00:33]} Nc5 {[%emt 0:06:16]} 26. Qe3 {[%emt 0:00:35]} Ra2
{[%emt 0:02:03]} 27. Bb1 {[%emt 0:00:32]} Ra4 {[%emt 0:00:00]} 28. f3 {[%emt 0:
05:11]} Qe7 {[%emt 0:09:15]} 29. g3 {[%emt 0:01:06]} Bd7 {[%emt 0:00:41]} 30.
Kh2 {[%emt 0:00:00]} Bg7 {[%emt 0:00:31]} 31. Ng2 {[%emt 0:00:00]} Bc8 {
[%emt 0:01:46]} 32. Qf2 {[%emt 0:00:38]} Qd7 {[%emt 0:01:51]} 33. g4 {[%emt 0:
02:32]} Qc7 {[%emt 0:15:30]} 34. Ng3 {[%emt 0:00:00]} Ba6 {[%emt 0:02:33]} 35.
Rd1 {[%emt 0:02:33]} Qa5 {[%emt 0:00:00]} 36. Bd2 {[%emt 0:00:53]} Nfd7 {
[%emt 0:00:00]} 37. h4 {[%emt 0:05:53]} Ra1 {[%emt 0:00:00]} 38. h5 {[%emt 0:
00:14]} Nd3 {[%emt 0:00:04]} 39. Qa7 {[%emt 0:01:40]} Nf8 {[%emt 0:01:02]} 40.
Ne3 {[%emt 0:00:32]} Rxb1 {[%emt 0:00:00]} 41. Rxb1 {[%emt 0:00:00]} Qa2 {
[%emt 0:00:00]} 42. Rd1 {[%emt 0:01:08]} Nf2 {[%emt 0:00:00]} 43. Re1 {[%emt 0:
00:00]} b4 {[%emt 0:00:00]} 44. Ng2 {[%emt 0:05:49]} b3 {[%emt 0:00:00]} 45.
Qxf2 {[%emt 0:00:00]} b2 {[%emt 0:00:00]} 46. Qb6 {[%emt 0:00:08]} Bd3 {
[%emt 0:00:00]} 47. Qxd6 {[%emt 0:00:10]} b1=Q {[%emt 0:00:00]} 48. Rxb1 {
[%emt 0:00:00]} Bxb1 {[%emt 0:00:00]} 49. Be3 {[%emt 0:00:00]} Bc2 {[%emt 0:01:
07]} 50. Kh3 {[%emt 0:06:22]} Bd1 {[%emt 0:00:00]} 51. Ne1 {[%emt 0:00:00]} Qa1
{[%emt 0:00:00]} 52. Qb4 {[%emt 0:00:00]} Be2 {[%emt 0:00:00]} 53. Bf2 {
[%emt 0:00:00]} Qa2 {[%emt 0:00:00]} 54. Kg2 {[%emt 0:02:42]} Bc4 {[%emt 0:00:
21]} 55. Nc2 {[%emt 0:02:12]} Bd3 {[%emt 0:00:00]} 56. Ne3 {[%emt 0:00:31]} Bf6
{[%emt 0:00:00]} 57. Nd1 {[%emt 0:00:42]} Qd2 {[%emt 0:00:13]} 58. Nb2 {
[%emt 0:00:00]} Be2 {[%emt 0:00:25]} 59. Na4 {[%emt 0:05:36]} Bd1 {[%emt 0:00:
30]} 60. Nb2 {[%emt 0:00:21]} Be2 {[%emt 0:00:00]} 61. Nc4 {[%emt 0:01:18]} Qd3
{[%emt 0:00:32]} 62. Nxe2 {[%emt 0:00:00]} Qxe2 {[%emt 0:00:00]} 63. Qb6 {
[%emt 0:01:42]} Nd7 {[%emt 0:00:43]} 64. Qa7 {[%emt 0:00:00]} 1-0